bitfinex-derivatives/quotes_SOLF0:USTF0_20241107
["timestamp","ask_amount","ask_price","bid_price","bid_amount"]
[1731007184253,19.55756913,195.44,195.31,19.55756913]
[1731007184753,19.55756913,195.47,195.34,19.55756913]
[1731007184953,19.55756913,195.47,195.35,19.55756913]
[1731007185345,19.55756913,195.47,195.24,8.50414976]
[1731007185552,19.55756913,195.47,195.3,19.55756913]
[1731007186546,19.55756913,195.47,195.31,2.5573]
[1731007186746,19.55756913,195.47,195.3,19.55756913]
[1731007187148,19.55756913,195.47,195.31,2.5572]
[1731007187356,19.55756913,195.47,195.31,22.11476913]
[1731007187861,19.55756913,195.47,195.35,19.55756913]
[1731007188454,19.55756913,195.47,195.32,19.55756913]
[1731007189463,2.5561,195.41,195.33,2.557]
[1731007189766,6.0,195.51,195.24,2.50414976]
[1731007189767,19.55756913,195.44,195.25,6.66]
[1731007189964,2.5562,195.4,195.3,2.5574]
[1731007190162,2.5562,195.4,195.22,19.55756913]
[1731007190163,19.55756913,195.41,195.24,19.55756913]
[1731007190363,19.55756913,195.38,195.24,19.55756913]
[1731007190563,2.5572,195.32,195.24,19.55756913]
[1731007190866,19.55756913,195.38,195.24,19.55756913]
[1731007191064,19.55756913,195.38,195.24,22.11566913]
[1731007191268,19.55756913,195.38,195.21,19.55756913]
[1731007191461,19.55756913,195.38,195.02,22.09685091]
[1731007191462,19.55756913,195.34,195.16,19.55756913]
[1731007191868,19.55756913,195.34,195.2,19.55756913]
[1731007192268,19.55756913,195.31,195.04,36.82]
[1731007192467,19.55756913,195.31,195.16,19.55756913]
[1731007192667,19.55756913,195.31,195.16,22.11714479]
[1731007192868,19.55756913,195.31,195.19,2.5587]
[1731007193067,19.55756913,195.31,195.16,19.55756913]
[1731007193271,2.558,195.26,195.16,22.11676913]
[1731007193470,19.55756913,195.31,195.16,19.55756913]
[1731007193772,6.66,195.41,195.12,2.5931061]
[1731007193973,19.55756913,195.36,195.13,6.66]
[1731007194275,2.5573,195.31,195.24,2.5582]
[1731007194572,19.55756913,195.36,195.2,19.55756913]
[1731007195073,19.55756913,195.36,195.21,2.51298655]
[1731007195472,19.55756913,195.36,195.24,2.5581]
[1731007195666,19.55756913,195.36,195.23,19.55756913]
[1731007195872,26.21756913,195.41,195.23,19.55756913]
[1731007196071,2.5567,195.36,195.29,2.5575]
[1731007196278,2.5567,195.36,195.23,19.55756913]
[1731007196669,19.55756913,195.41,195.26,2.5578]
[1731007196873,19.55756913,195.36,195.23,19.55756913]
[1731007197378,19.55756913,195.36,195.27,2.5578]
[1731007197577,19.55756913,195.36,195.12,19.55756913]
[1731007197578,19.55756913,195.33,195.16,19.55756913]
[1731007197777,19.55756913,195.41,195.16,19.55756913]
[1731007197778,19.55756913,195.3,195.16,19.55756913]
[1731007197970,19.55756913,195.3,195.19,2.5587]
[1731007198166,19.55756913,195.27,195.13,19.55756913]
[1731007198372,2.5583,195.23,195.13,19.55756913]
[1731007198573,19.55756913,195.27,195.13,19.55756913]
[1731007198880,2.5587,195.21,195.15,2.5593]
[1731007199075,19.55756913,195.27,195.13,19.55756913]
[1731007199472,2.5586,195.22,195.16,2.5592]
[1731007199980,19.55756913,195.27,195.13,19.55756913]
[1731007200668,19.55756913,195.3,195.15,19.55756913]
[1731007200874,34.81756913,195.41,195.21,19.55756913]
[1731007200875,19.55756913,195.37,195.21,19.55756913]
[1731007201173,19.55756913,195.33,195.17,19.55756913]
[1731007201379,19.55756913,195.33,195.06,6.66]
[1731007201380,19.55756913,195.33,195.2,19.55756913]
[1731007201776,2.5573,195.31,195.2,19.55756913]
[1731007202478,2.5573,195.31,195.25,2.5579]
[1731007202673,26.21756913,195.37,195.2,19.55756913]
[1731007203177,26.21756913,195.37,195.23,19.55756913]
[1731007203178,19.55756913,195.37,195.23,19.55756913]
[1731007203478,6.66,195.43,195.31,2.5572]
[1731007203479,19.55756913,195.39,195.31,2.5572]
[1731007203682,19.55756913,195.39,195.15,24.54036119]
[1731007203683,19.55756913,195.43,195.26,19.55756913]
[1731007204280,19.55756913,195.43,195.34,2.5568]
[1731007204475,19.55756913,195.43,195.27,2.50812819]
[1731007204667,19.55756913,195.4,195.25,6.66]
[1731007205574,2.5567,195.36,195.25,6.66]
[1731007205972,2.5567,195.36,195.3,2.5573]
[1731007207175,19.55756913,195.4,195.26,19.55756913]
[1731007207681,2.5564,195.39,195.26,19.55756913]
[1731007208076,19.55756913,195.43,195.26,19.55756913]
[1731007208674,2.5565,195.37,195.26,19.55756913]
[1731007208875,19.55756913,195.43,195.26,19.55756913]
[1731007209178,2.5567,195.36,195.3,2.5573]
[1731007209894,2.5567,195.36,195.26,19.55756913]
[1731007209895,2.5567,195.36,195.31,2.5573]
[1731007210069,2.5565,195.38,195.26,19.55756913]
[1731007211777,5.34555369,195.67,195.25,2.60967964]
[1731007211981,58.62379306,195.84,195.15,2.55036119]
[1731007211982,19.55756913,195.29,195.16,19.55756913]
[1731007212176,2.62209357,195.45,195.18,2.5589]
[1731007212377,2.5573,195.31,195.21,19.55756913]
[1731007212579,19.55756913,195.36,195.21,19.55756913]
[1731007212781,19.55756913,195.36,195.15,6.94]
[1731007212782,19.55756913,195.33,195.18,19.55756913]
[1731007213283,19.55756913,195.33,195.13,6.94]
[1731007213284,19.55756913,195.3,195.19,2.5588]
[1731007213478,19.55756913,195.27,194.64,2.21458134]
[1731007213677,19.55756913,195.27,195.09,19.55756913]
[1731007213878,19.55756913,195.27,195.12,2.5597]
[1731007214587,2.5583,195.24,195.12,2.5597]
[1731007214805,19.55756913,195.27,195.12,19.55756913]
[1731007215277,2.558,195.26,195.16,2.5592]
[1731007215675,2.558,195.26,195.12,19.55756913]
[1731007215978,19.55756913,195.27,195.12,19.55756913]
[1731007216178,19.55756913,195.27,195.1,2.5901137]
[1731007216383,19.55756913,195.27,195.1,19.55756913]
[1731007216579,19.55756913,195.27,195.11,2.54000148]
[1731007216980,19.55756913,195.27,195.16,2.5592]
[1731007217179,19.55756913,195.27,195.13,19.55756913]
[1731007217575,19.55756913,195.27,195.08,9.4697616]
[1731007217774,19.55756913,195.27,195.18,2.559]
[1731007217775,22.11546913,195.27,195.18,2.559]
[1731007217990,19.55756913,195.27,195.18,2.559]
[1731007218582,2.5579,195.26,195.18,2.559]
[1731007218977,19.55756913,195.3,195.16,19.55756913]
[1731007219180,19.55756913,195.41,195.19,19.55756913]
[1731007219181,19.55756913,195.35,195.19,19.55756913]
[1731007219384,19.55756913,195.35,195.19,22.08323161]
[1731007219583,2.5574,195.31,195.19,19.55756913]
[1731007219785,19.55756913,195.32,195.08,2.5297616]
[1731007220082,22.11476913,195.32,195.22,2.5584]
[1731007220282,22.11476913,195.32,195.19,6.94]
[1731007220283,19.55756913,195.32,195.19,6.94]
[1731007220683,19.55756913,195.35,195.21,19.55756913]
[1731007221083,19.55756913,195.38,195.21,19.55756913]
[1731007221286,2.5566,195.36,195.27,2.5577]
[1731007221785,19.55756913,195.38,195.28,2.5576]
[1731007221786,2.5566,195.37,195.28,2.5576]
[1731007222295,19.55756913,195.38,195.24,19.55756913]
[1731007222589,22.11406913,195.38,195.24,19.55756913]
[1731007223093,19.55756913,195.41,195.24,19.55756913]
[1731007223689,2.5562,195.39,195.32,2.5571]
[1731007224093,19.55756913,195.41,195.29,2.57424193]
[1731007224280,19.55756913,195.44,195.29,6.94]
[1731007224586,19.55756913,195.44,195.3,2.55480211]
[1731007224790,19.55756913,195.44,195.29,6.94]
[1731007225289,2.556,195.41,195.34,2.5569]
[1731007225791,2.5559,195.42,195.35,2.5567]
[1731007226085,19.55756913,195.44,195.35,2.5567]
[1731007226480,2.556,195.42,195.35,2.5567]
[1731007226684,19.55756913,195.44,195.35,2.5567]
[1731007227086,2.5559,195.42,195.36,2.5566]
[1731007227785,19.55756913,195.44,195.36,2.5566]
[1731007227985,2.556,195.41,195.36,2.5566]
[1731007228185,19.55756913,195.44,195.36,2.5566]
[1731007228384,2.5559,195.42,195.36,2.5566]
[1731007228584,19.55756913,195.44,195.35,2.5566]
[1731007228790,19.55756913,195.44,195.31,22.1589245]
[1731007228990,2.5558,195.43,195.31,22.1589245]
[1731007229695,2.5559,195.42,195.36,2.5565]
[1731007229992,2.5559,195.42,195.31,22.1589245]
[1731007230586,19.55756913,195.41,195.19,15.33]
[1731007230784,19.55756913,195.41,195.07,7.6812]
[1731007230785,19.55756913,195.41,195.27,19.55756913]
[1731007231491,19.55756913,195.41,195.22,19.55756913]
[1731007231883,19.55756913,195.38,195.22,22.07872575]
[1731007233000,19.55756913,195.41,195.22,22.07872575]
[1731007233192,19.55756913,195.41,195.26,19.55756913]
[1731007233492,19.55756913,195.41,195.23,19.55756913]
[1731007233697,2.5572,195.32,195.23,19.55756913]
[1731007234389,19.55756913,195.41,195.23,19.55756913]
[1731007235098,2.5571,195.33,195.23,19.55756913]
[1731007235391,2.5571,195.33,195.26,2.5579]
[1731007235593,2.5571,195.33,195.23,19.55756913]
[1731007236093,6.94,195.4,195.23,2.5582]
[1731007236293,19.55756913,195.35,195.23,2.5582]
[1731007236498,2.5574,195.31,195.23,2.5582]
[1731007236693,2.5574,195.31,195.21,2.54828737]
[1731007236900,2.5574,195.31,195.24,2.5582]
[1731007237792,6.94,195.4,195.24,2.5582]
[1731007237793,19.55756913,195.38,195.24,19.55756913]
[1731007237992,6.94,195.4,195.24,19.55756913]
[1731007238495,2.5568,195.36,195.29,2.5575]
[1731007238692,19.55756913,195.38,195.17,6.94]
[1731007238995,19.55756913,195.38,195.22,19.55756913]
[1731007239198,19.55756913,195.38,195.24,2.5581]
[1731007239199,2.5574,195.31,195.24,2.5581]
[1731007239794,2.5574,195.31,195.25,2.558]
[1731007240498,6.94,195.4,195.25,19.55756913]
[1731007240999,19.55756913,195.41,195.25,19.55756913]
[1731007243293,2.5568,195.35,195.27,2.5577]
[1731007243605,6.94,195.46,195.22,37.42192346]
[1731007243606,19.55756913,195.37,195.22,2.53435433]
[1731007243800,19.55756913,195.37,195.22,19.55756913]
[1731007243997,19.55756913,195.4,195.26,19.55756913]
[1731007244194,2.5567,195.36,195.28,2.5576]
[1731007244500,2.5567,195.36,195.26,19.55756913]
[1731007244501,2.5567,195.36,195.27,2.58832888]
[1731007244815,19.55756913,195.4,195.26,19.55756913]
[1731007244992,19.55756913,195.4,195.27,2.52692738]
[1731007245304,2.5564,195.39,195.27,2.52692738]
[1731007245497,19.55756913,195.43,195.29,19.55756913]
[1731007245700,19.55756913,195.43,195.29,26.21756913]
[1731007245895,2.5562,195.4,195.33,2.557]
[1731007246100,19.55756913,195.4,195.23,2.5780953]
[1731007246300,19.55756913,195.4,195.23,19.55756913]
[1731007246801,2.5572,195.32,195.23,19.55756913]
[1731007246996,5.1108,195.46,195.23,19.55756913]
[1731007246997,19.55756913,195.37,195.23,19.55756913]
[1731007247402,2.5573,195.31,195.25,2.558]
[1731007247606,19.55756913,195.37,195.23,19.55756913]
[1731007247807,5.1108,195.46,195.26,19.55756913]
[1731007247808,19.55756913,195.4,195.26,19.55756913]
[1731007248007,2.5567,195.36,195.3,2.5574]
[1731007248409,2.5567,195.36,195.29,2.5575]
[1731007248608,19.55756913,195.4,195.29,2.5575]
[1731007248811,2.5568,195.35,195.29,2.5575]
[1731007249603,2.5567,195.36,195.3,2.5574]
[1731007250405,19.55756913,195.4,195.26,34.88756913]
[1731007250618,2.5566,195.37,195.31,2.5573]
[1731007251813,2.5563,195.39,195.33,2.557]
[1731007252002,6.38,195.5,195.31,2.56159035]
[1731007252327,7.6639,195.52,195.35,2.5567]
[1731007252328,2.5561,195.41,195.35,2.5567]
[1731007252509,19.55756913,195.49,195.34,2.56568357]
[1731007252709,19.55756913,195.49,195.32,19.55756913]
[1731007252914,19.55756913,195.49,195.33,2.61871157]
[1731007253416,2.5556,195.45,195.36,2.5566]
[1731007253603,19.55756913,195.49,195.36,2.5566]
[1731007253918,2.5559,195.42,195.36,2.5566]
[1731007255905,19.55756913,195.49,195.35,19.55756913]
[1731007256102,19.55756913,195.49,195.38,2.5563]
[1731007256519,2.5557,195.44,195.38,2.5563]
[1731007257614,19.55756913,195.49,195.35,19.55756913]
[1731007257809,2.5554,195.46,195.4,2.5561]
[1731007258006,19.55756913,195.49,195.38,6.1]
[1731007258510,2.5553,195.47,195.4,2.556]
[1731007258713,19.55756913,195.49,195.38,6.1]
[1731007259110,19.55756913,195.49,195.4,2.5561]
[1731007259111,2.5555,195.45,195.4,2.5561]
[1731007259517,2.5556,195.44,195.38,8.6563]
[1731007260116,19.55756913,195.49,195.38,6.1]
[1731007260313,0.23643,195.54,195.41,19.55756913]
[1731007260508,0.23643,195.54,195.38,6.1]
[1731007260509,0.23643,195.54,195.44,19.55756913]
[1731007260811,0.23643,195.54,195.48,19.55756913]
[1731007261016,0.23643,195.54,195.48,25.65756913]
[1731007261317,0.23643,195.54,195.48,6.1]
[1731007261521,2.5544,195.53,195.48,6.1]
[1731007261715,2.5544,195.53,195.46,2.5552]
[1731007262017,2.79073,195.54,195.47,2.5551]
[1731007262211,0.23643,195.54,195.45,22.09431829]
[1731007262408,0.23643,195.54,195.48,19.55756913]
[1731007262612,0.23643,195.54,195.53,2.5544]
[1731007265515,2.5536,195.6,195.53,2.5544]
[1731007267228,19.55756913,195.64,195.53,2.5544]
[1731007267720,19.55756913,195.64,195.55,2.554]
[1731007267721,2.5534,195.61,195.55,2.554]
[1731007267920,19.55756913,195.64,195.51,25.65756913]
[1731007268117,19.55756913,195.64,195.51,6.1]
[1731007268319,2.5537,195.59,195.51,8.6546]
[1731007268523,19.55756913,195.6,195.51,6.1]
[1731007268723,19.55756913,195.6,195.48,5.8]
[1731007268919,2.5545,195.53,195.48,5.8]
[1731007269231,19.55756913,195.57,195.41,5.8]
[1731007269526,2.5548,195.5,195.43,2.5556]
[1731007269730,2.5548,195.5,195.41,5.8]
[1731007269931,19.55756913,195.57,195.41,5.8]
[1731007270433,19.55756913,195.57,195.43,19.55756913]
[1731007270741,19.76197913,195.64,195.49,19.55756913]
[1731007270927,2.5537,195.59,195.52,2.5544]
[1731007271123,19.76197913,195.64,195.52,2.5544]
[1731007271324,19.76197913,195.64,195.5,5.8]
[1731007271528,19.55756913,195.6,195.46,19.55756913]
[1731007271725,19.55756913,195.6,195.46,5.8]
[1731007272322,2.5544,195.53,195.47,2.5551]
[1731007272521,19.55756913,195.6,195.47,2.5551]
[1731007272723,19.55756913,195.57,195.47,2.5551]
[1731007272922,2.5544,195.54,195.47,2.5551]
[1731007273422,0.20441,195.64,195.48,15.33]
[1731007273619,19.76197913,195.64,195.5,19.55756913]
[1731007273817,19.76197913,195.64,195.51,5.8]
[1731007274037,2.5534,195.61,195.51,5.8]
[1731007274236,0.20441,195.64,195.51,21.13]
[1731007274631,0.20441,195.64,195.54,2.5542]
[1731007275044,19.55756913,195.63,195.51,21.13]
[1731007275239,19.55756913,195.63,195.51,5.8]
[1731007275650,19.55756913,195.6,195.45,5.8]
[1731007276247,2.5545,195.53,195.47,2.5552]
[1731007276449,19.55756913,195.57,195.44,19.55756913]
[1731007276844,2.5546,195.52,195.45,2.5554]
[1731007277154,19.55756913,195.57,195.44,19.55756913]
[1731007277546,2.5542,195.55,195.48,2.555]
[1731007277751,2.5542,195.55,195.44,19.55756913]
[1731007278148,19.55756913,195.6,195.46,19.55756913]
[1731007279147,6.00441,195.64,195.46,19.55756913]
[1731007279148,19.55756913,195.63,195.46,19.55756913]
[1731007279453,2.5538,195.58,195.46,19.55756913]
[1731007279848,2.5538,195.58,195.52,2.5545]
[1731007280048,2.5538,195.58,195.46,19.55756913]
[1731007280243,19.55756913,195.63,195.49,19.55756913]
[1731007280956,2.5535,195.6,195.54,2.5543]
[1731007282157,0.20441,195.64,195.51,5.52]
[1731007282158,2.5533,195.62,195.51,5.52]
[1731007282643,0.20441,195.64,195.51,5.52]
[1731007282644,2.5534,195.61,195.55,2.5541]
[1731007283649,0.20441,195.64,195.51,5.52]
[1731007283650,19.55756913,195.63,195.51,5.52]
[1731007283855,19.55756913,195.63,195.5,5.52]
[1731007284149,2.5536,195.6,195.51,2.5547]
[1731007284356,19.55756913,195.63,195.51,2.5547]
[1731007284853,2.5539,195.57,195.51,2.5547]
[1731007285451,2.554,195.57,195.51,2.5547]
[1731007286452,2.554,195.57,195.5,5.52]
[1731007286453,2.554,195.57,195.52,2.5545]
[1731007287254,19.55756913,195.63,195.5,5.52]
[1731007288059,2.554,195.56,195.51,2.5546]
[1731007288559,2.554,195.56,195.52,2.5545]
[1731007288753,2.5544,195.54,195.46,19.55756913]
[1731007288962,19.55756913,195.57,195.47,2.5552]
[1731007289151,19.55756913,195.57,195.44,5.22]
[1731007289962,2.5545,195.53,195.47,2.5551]
[1731007291057,2.5545,195.53,195.46,2.5553]
[1731007291260,2.5545,195.53,195.44,5.22]
[1731007291757,19.55756913,195.57,195.47,2.5552]
[1731007291758,2.5545,195.52,195.47,2.5552]
[1731007292355,5.22,195.61,195.43,7.83824748]
[1731007292356,19.55756913,195.54,195.43,7.83824748]
[1731007292559,2.5548,195.51,195.44,2.5556]
[1731007293557,19.55756913,195.54,195.41,2.556]
[1731007293762,24.77756913,195.61,195.27,5.1155]
[1731007293763,19.55756913,195.51,195.39,5.22]
[1731007294664,19.55756913,195.51,195.39,7.7761]
[1731007294665,2.5554,195.46,195.39,7.7761]
[1731007294966,19.55756913,195.51,195.39,5.22]
[1731007295459,19.55756913,195.51,195.4,12.26497122]
[1731007295460,12.26497122,195.51,195.4,12.26497122]
[1731007295869,12.26497122,195.51,195.42,2.5558]
[1731007296064,12.26497122,195.54,195.43,12.26497122]
[1731007296366,12.26497122,195.54,195.44,2.54110177]
[1731007296861,2.5544,195.53,195.43,12.26497122]
[1731007297469,2.5545,195.52,195.45,2.5554]
[1731007298063,2.5545,195.52,195.46,14.82027122]
[1731007298263,2.5544,195.53,195.46,14.82027122]
[1731007298769,2.5544,195.53,195.46,17.32250524]
[1731007299659,2.5544,195.53,195.46,14.76720524]
[1731007299856,2.5544,195.53,195.47,2.5552]
[1731007300863,2.5547,195.51,195.45,2.5554]
[1731007301871,12.26497122,195.54,195.44,2.52932664]
[1731007302073,12.26497122,195.57,195.46,12.26497122]
[1731007302570,2.5541,195.56,195.48,12.26497122]
[1731007302878,2.5541,195.56,195.46,2.55820889]
[1731007302879,12.26497122,195.59,195.51,12.26497122]
[1731007303366,2.5536,195.59,195.52,2.5545]
[1731007303567,12.26497122,195.62,195.51,12.26497122]
[1731007303964,12.26497122,195.62,195.54,2.5543]
[1731007304470,5.104,195.72,195.54,2.5543]
[1731007304471,12.26497122,195.64,195.54,12.26497122]
[1731007304670,2.5534,195.62,195.55,2.5541]
[1731007304869,12.26497122,195.64,195.55,2.5541]
[1731007305267,2.5533,195.62,195.55,2.5541]
[1731007305466,12.26497122,195.67,195.56,12.26497122]
[1731007305769,0.21699,195.61,195.59,12.26497122]
[1731007305972,0.21699,195.61,195.59,14.82366565]
[1731007306479,54.18727122,195.79,195.59,14.82366565]
[1731007306480,2.5525,195.68,195.59,14.82366565]
[1731007306672,2.5525,195.68,195.63,12.26497122]
[1731007308584,2.5525,195.68,195.65,12.26497122]
[1731007310080,12.26497122,195.75,195.65,12.26497122]
[1731007310375,4.96,195.78,195.34,11.25361656]
[1731007310376,12.26497122,195.72,195.49,2.56533707]
[1731007310671,2.5528,195.66,195.6,12.26497122]
[1731007311271,2.5529,195.65,195.6,12.26497122]
[1731007313670,2.5527,195.67,195.6,12.26497122]
[1731007313871,12.26497122,195.7,195.6,12.26497122]
[1731007314573,2.553,195.64,195.6,12.26497122]
[1731007314768,12.26497122,195.7,195.6,12.26497122]
[1731007314971,12.26497122,195.68,195.57,12.26497122]
[1731007315172,2.5535,195.6,195.57,12.26497122]
[1731007316172,2.5539,195.57,195.51,12.26497122]
[1731007317375,4.7,195.66,195.53,14.81927122]
[1731007317376,2.5535,195.6,195.53,14.81927122]
[1731007317580,12.26497122,195.64,195.53,12.26497122]
[1731007317878,4.7,195.66,195.56,12.26497122]
[1731007317879,12.26497122,195.66,195.56,12.26497122]
[1731007318676,2.5531,195.63,195.56,12.26497122]
[1731007318877,12.26497122,195.66,195.56,12.26497122]
[1731007319074,2.5529,195.65,195.59,2.5536]
[1731007319274,12.26497122,195.69,195.59,14.81857122]
[1731007319469,12.26497122,195.69,195.59,14.82264424]
[1731007319671,12.26497122,195.69,195.6,2.5534]
[1731007319672,2.5528,195.66,195.6,2.5534]
[1731007319876,2.5528,195.66,195.59,14.82264424]
[1731007319877,12.26497122,195.69,195.59,14.82264424]
[1731007320276,12.26497122,195.71,195.61,12.26497122]
[1731007320676,12.26497122,195.71,195.62,4.7]
[1731007320989,2.5523,195.7,195.63,12.26497122]
[1731007321176,2.54770806,195.83,195.63,12.26497122]
[1731007321378,7.6511,195.85,195.63,12.26497122]
[1731007321379,12.26497122,195.75,195.63,12.26497122]
[1731007321681,12.26497122,195.75,195.62,7.19967096]
[1731007321876,12.26497122,195.75,195.65,12.26497122]
[1731007322186,12.26497122,195.75,195.62,7.19967096]
[1731007322187,12.26497122,195.75,195.67,12.26497122]
[1731007322374,12.26497122,195.78,195.67,12.26497122]
[1731007322574,2.5515,195.76,195.68,2.5524]
[1731007322779,2.5515,195.76,195.69,12.26497122]
[1731007323286,41.8987,195.92,195.71,12.26497122]
[1731007323287,12.26497122,195.81,195.71,12.26497122]
[1731007323681,2.5509,195.8,195.73,2.5518]
[1731007323883,12.26497122,195.84,195.73,2.5518]
[1731007324384,2.5509,195.81,195.73,2.5518]
[1731007324680,2.5509,195.81,195.72,2.60366799]
[1731007324880,2.5509,195.81,195.74,2.5516]
[1731007325082,2.5509,195.81,195.74,14.81657122]
[1731007325376,12.26497122,195.84,195.74,12.26497122]
[1731007325576,5.0968,196.0,195.74,12.26497122]
[1731007325784,12.26497122,195.89,195.8,12.26497122]
[1731007326176,12.26497122,195.87,195.77,16.96497122]
[1731007327082,2.5505,195.84,195.77,4.7]
[1731007327275,12.26497122,195.87,195.77,4.7]
[1731007328083,2.5504,195.84,195.77,4.7]
[1731007328384,12.26497122,195.87,195.77,16.96497122]
[1731007328777,12.26497122,195.9,195.8,12.26497122]
[1731007329173,2.55,195.87,195.8,12.26497122]
[1731007329573,2.55,195.87,195.77,4.7]
[1731007329574,12.26497122,195.87,195.77,16.96497122]
[1731007329787,2.5505,195.84,195.77,16.96497122]
[1731007330175,12.26497122,195.87,195.77,4.7]
[1731007330380,2.5507,195.82,195.77,4.7]
[1731007330978,12.26497122,195.85,195.74,12.26497122]
[1731007331176,12.26497122,195.82,195.71,4.44]
[1731007331586,2.5513,195.77,195.71,4.44]
[1731007332886,2.5514,195.76,195.71,4.44]
[1731007333078,12.26497122,195.81,195.71,4.44]
[1731007333478,2.5513,195.77,195.71,4.44]
[1731007333985,12.26497122,195.81,195.71,6.992]
[1731007334694,2.551,195.79,195.72,12.26497122]
[1731007334893,2.551,195.79,195.72,14.81687122]
[1731007335092,2.5512,195.78,195.72,12.26497122]
[1731007335790,2.551,195.79,195.72,14.81687122]
[1731007336189,2.5513,195.77,195.71,4.44]
[1731007337896,12.26497122,195.78,195.71,4.44]
[1731007338196,12.26497122,195.78,195.67,12.26497122]
[1731007338197,12.26497122,195.78,195.52,36.78]
[1731007338390,12.26497122,195.74,195.61,4.44]
[1731007338594,2.5525,195.68,195.61,4.44]
[1731007338897,16.70497122,195.79,195.61,4.44]
[1731007339085,12.26497122,195.69,195.61,4.44]
[1731007339297,2.5528,195.66,195.61,4.44]
[1731007339887,12.26497122,195.67,195.56,12.26497122]
[1731007340088,12.26497122,195.64,195.51,57.60882828]
[1731007340384,12.26497122,195.62,195.51,16.70497122]
[1731007340583,12.26497122,195.59,195.51,4.44]
[1731007341385,12.26497122,195.59,195.49,12.26497122]
[1731007341696,19.63216689,195.6,195.46,4.44]
[1731007342386,2.5543,195.54,195.48,2.5551]
[1731007342787,19.63216689,195.6,195.46,7.04327135]
[1731007342988,2.5535,195.6,195.52,2.5545]
[1731007343192,19.63216689,195.63,195.52,2.5545]
[1731007343593,19.63216689,195.63,195.48,19.63216689]
[1731007344098,19.63216689,195.6,195.46,4.44]
[1731007344690,2.5544,195.54,195.47,2.5551]
[1731007346499,2.5544,195.54,195.46,6.9953]
[1731007346689,2.5544,195.54,195.46,4.44]
[1731007346890,2.5543,195.54,195.47,2.5551]
[1731007347601,2.5543,195.54,195.46,4.44]
[1731007347797,2.5543,195.54,195.46,6.9953]
[1731007348003,2.5543,195.54,195.46,4.44]
[1731007348302,19.63216689,195.6,195.46,4.44]
[1731007348501,19.63216689,195.6,195.45,19.63216689]
[1731007348502,19.63216689,195.57,195.42,19.63216689]
[1731007348701,19.63216689,195.54,195.4,6.7890024]
[1731007348904,19.63216689,195.54,195.39,19.63216689]
[1731007349092,19.63216689,195.5,195.38,4.2]
[1731007349400,19.63216689,195.5,195.36,4.2]
[1731007349602,19.63216689,195.5,195.35,19.63216689]
[1731007349799,19.63216689,195.5,195.36,4.2]
[1731007350204,2.5551,195.48,195.41,2.5559]
[1731007350401,4.2,195.52,195.38,19.63216689]
[1731007350601,19.63216689,195.53,195.38,22.23680349]
[1731007350805,2.5548,195.51,195.44,2.5555]
[1731007351702,19.63216689,195.53,195.43,4.2]
[1731007351896,19.63216689,195.53,195.32,15.33]
[1731007351897,19.63216689,195.53,195.37,19.63216689]
[1731007352098,19.63216689,195.5,195.38,2.5562]
[1731007352298,19.63216689,195.5,195.37,19.63216689]
[1731007352504,19.63216689,195.5,195.37,23.85216689]
[1731007352702,19.63216689,195.5,195.38,2.5563]
[1731007352703,2.5553,195.47,195.38,2.5563]
[1731007352896,19.63216689,195.5,195.38,2.5563]
[1731007353300,2.5556,195.44,195.38,2.5563]
[1731007353705,2.5556,195.44,195.37,23.85216689]
[1731007353908,2.5556,195.44,195.37,26.40866689]
[1731007354105,2.5556,195.44,195.37,23.85216689]
[1731007354307,19.63216689,195.5,195.37,23.85216689]
[1731007354505,2.5558,195.43,195.37,23.85216689]
[1731007354707,19.63216689,195.5,195.37,23.85216689]
[1731007354908,19.63216689,195.53,195.37,23.85216689]
[1731007355104,19.63216689,195.53,195.37,26.39441699]
[1731007355508,2.5552,195.47,195.4,2.556]
[1731007355900,2.5558,195.43,195.37,23.85216689]
[1731007356104,19.63216689,195.5,195.37,4.22]
[1731007356703,19.63216689,195.5,195.37,6.7764]
[1731007356906,23.85216689,195.5,195.37,2.5564]
[1731007357104,23.85216689,195.5,195.34,23.85216689]
[1731007357105,23.85216689,195.5,195.34,19.63216689]
[1731007357411,19.63216689,195.47,195.34,4.22]
[1731007357706,19.63216689,195.44,195.34,4.22]
[1731007357912,19.63216689,195.44,195.31,23.85216689]